[Event "Titled Tuesday Blitz April 19 Early 2022"]
[White "Simonovic, Miroslav"]
[Black "Petrova, Irina"]
[WhiteFideId "919152"]
[BlackFideId "14124122"]
[WhiteElo "2043"]
[BlackElo "1993"]
[Result "1-0"]
[Round "09"]
[TimeControl "180+1"]
[Date "2022.04.19"]
[WhiteClock "0:00:07"]
[BlackClock "0:00:01"]

1. d4 {[%clk 0:03:00]}  d6 {[%clk 0:02:59]} 2. Bg5 {[%clk 0:03:00]}  g6 {[%clk 0:02:59]} 3. h4 {[%clk 0:02:59]}  h5 {[%clk 0:02:56]} 4. e3 {[%clk 0:02:58]}  Bg7 {[%clk 0:02:57]} 5. Bd3 {[%clk 0:02:57]}  Nd7 {[%clk 0:02:57]} 6. c4 {[%clk 0:02:57]}  c5 {[%clk 0:02:56]} 7. Ne2 {[%clk 0:02:54]}  Ngf6 {[%clk 0:02:52]} 8. Qc2 {[%clk 0:02:52]}  cxd4 {[%clk 0:02:40]} 9. exd4 {[%clk 0:02:51]}  O-O {[%clk 0:02:32]} 10. Nbc3 {[%clk 0:02:50]}  d5 {[%clk 0:02:26]} 11. cxd5 {[%clk 0:02:33]}  Nb6 {[%clk 0:02:25]} 12. Nf4 {[%clk 0:02:31]}  Nfxd5 {[%clk 0:02:18]} 13. Nfxd5 {[%clk 0:02:25]}  Nxd5 {[%clk 0:02:18]} 14. O-O {[%clk 0:02:22]}  Nb4 {[%clk 0:02:16]} 15. Qe2 {[%clk 0:02:05]}  Nxd3 {[%clk 0:02:15]} 16. Qxd3 {[%clk 0:02:06]}  Bf5 {[%clk 0:02:14]} 17. Qd2 {[%clk 0:01:58]}  Re8 {[%clk 0:02:05]} 18. Rad1 {[%clk 0:01:56]}  Rc8 {[%clk 0:01:46]} 19. Rfe1 {[%clk 0:01:53]}  Qd7 {[%clk 0:01:33]} 20. Be3 {[%clk 0:01:35]}  Rc4 {[%clk 0:01:25]} 21. Qe2 {[%clk 0:01:29]}  Rec8 {[%clk 0:01:18]} 22. d5 {[%clk 0:01:16]}  b5 {[%clk 0:00:54]} 23. a4 {[%clk 0:00:54]}  b4 {[%clk 0:00:49]} 24. Nb5 {[%clk 0:00:48]}  Rc2 {[%clk 0:00:46]} 25. Rd2 {[%clk 0:00:46]}  Rxd2 {[%clk 0:00:46]} 26. Qxd2 {[%clk 0:00:45]}  Rc2 {[%clk 0:00:38]} 27. Qxb4 {[%clk 0:00:45]}  Qxd5 {[%clk 0:00:37]} 28. Nc3 {[%clk 0:00:35]}  Qd7 {[%clk 0:00:23]} 29. Qb8+ {[%clk 0:00:21]}  Kh7 {[%clk 0:00:23]} 30. Bc5 {[%clk 0:00:13]}  e6 {[%clk 0:00:19]} 31. Qxa7 {[%clk 0:00:09]}  Qxa7 {[%clk 0:00:14]} 32. Bxa7 {[%clk 0:00:10]}  Rxb2 {[%clk 0:00:15]} 33. Nb5 {[%clk 0:00:10]}  Ra2 {[%clk 0:00:12]} 34. Nd6 {[%clk 0:00:06]}  Rxa4 {[%clk 0:00:07]} 35. Nxf5 {[%clk 0:00:06]}  Rxa7 {[%clk 0:00:06]} 36. Ne3 {[%clk 0:00:04]}  Bd4 {[%clk 0:00:05]} 37. Nc4 {[%clk 0:00:04]}  Ra2 {[%clk 0:00:03]} 38. Rf1 {[%clk 0:00:04]}  Kg7 {[%clk 0:00:03]} 39. Ne3 {[%clk 0:00:04]}  Bxe3 {[%clk 0:00:02]} 40. fxe3 {[%clk 0:00:05]}  f5 {[%clk 0:00:02]} 41. Rf3 {[%clk 0:00:06]}  Kf6 {[%clk 0:00:02]} 42. Kh2 {[%clk 0:00:07]}  e5 {[%clk 0:00:02]} 43. Kg3 {[%clk 0:00:07]}  Ra3 {[%clk 0:00:02]} 44. Kf2 {[%clk 0:00:06]}  e4 {[%clk 0:00:02]} 45. Rg3 {[%clk 0:00:07]}  Ra2+ {[%clk 0:00:02]} 46. Ke1 {[%clk 0:00:07]}  Rb2 {[%clk 0:00:02]} 47. Kf1 {[%clk 0:00:07]}  Rc2 {[%clk 0:00:01]} 48. Rh3 {[%clk 0:00:07]} 1-0


[Site "https://www.chess.com"]

[Event "Titled Tuesday Blitz April 19 Early 2022"]
[White "Skytte, Rasmus"]
[Black "Namitbir Singh Walia"]
[WhiteFideId "1404210"]
[BlackFideId "35071068"]
[WhiteElo "2430"]
[BlackElo "1565"]
[Result "0-1"]
[Round "09"]
[TimeControl "180+1"]
[Date "2022.04.19"]
[WhiteClock "0:01:18"]
[BlackClock "0:01:41"]

1. e4 {[%clk 0:02:23]}  c5 {[%clk 0:03:00]} 2. Nf3 {[%clk 0:02:22]}  Nc6 {[%clk 0:03:00]} 3. d4 {[%clk 0:02:23]}  cxd4 {[%clk 0:03:01]} 4. Nxd4 {[%clk 0:02:22]}  g6 {[%clk 0:03:02]} 5. c4 {[%clk 0:02:20]}  Nf6 {[%clk 0:03:02]} 6. Nc3 {[%clk 0:02:18]}  Nxd4 {[%clk 0:03:01]} 7. Qxd4 {[%clk 0:02:16]}  d6 {[%clk 0:03:02]} 8. Be3 {[%clk 0:02:15]}  Bg7 {[%clk 0:03:02]} 9. O-O-O {[%clk 0:02:13]}  O-O {[%clk 0:03:00]} 10. Qd2 {[%clk 0:02:08]}  Be6 {[%clk 0:02:51]} 11. f3 {[%clk 0:02:05]}  Qa5 {[%clk 0:02:33]} 12. g4 {[%clk 0:01:56]}  Rfc8 {[%clk 0:02:22]} 13. b3 {[%clk 0:01:47]}  Nxg4 {[%clk 0:02:02]} 14. Bd4 {[%clk 0:01:27]}  Ne5 {[%clk 0:01:55]} 15. f4 {[%clk 0:01:24]}  Nf3 {[%clk 0:01:54]} 16. Qe3 {[%clk 0:01:22]}  Nxd4 {[%clk 0:01:48]} 17. Rxd4 {[%clk 0:01:23]}  Bxd4 {[%clk 0:01:48]} 18. Qxd4 {[%clk 0:01:24]}  b5 {[%clk 0:01:48]} 19. Nxb5 {[%clk 0:01:19]}  Qxb5 {[%clk 0:01:45]} 20. Bd3 {[%clk 0:01:15]}  Qc5 {[%clk 0:01:44]} 21. Rf1 {[%clk 0:01:16]}  Qxd4 {[%clk 0:01:44]} 22. f5 {[%clk 0:01:17]}  Qxd3 {[%clk 0:01:42]} 23. fxe6 {[%clk 0:01:17]}  Qxf1+ {[%clk 0:01:42]} 24. Kc2 {[%clk 0:01:17]}  Rxc4+ {[%clk 0:01:42]} 25. Kb2 {[%clk 0:01:18]}  Qc1# {[%clk 0:01:41]} 0-1


[Site "https://www.chess.com"]

[Event "Titled Tuesday Blitz April 19 Early 2022"]
[White "Stelmaszyk, Nico"]
[Black "Le Ruyet, Leopold"]
[WhiteFideId "16200462"]
[BlackFideId "645923"]
[WhiteElo "2119"]
[BlackElo "2276"]
[Result "1/2-1/2"]
[Round "09"]
[TimeControl "180+1"]
[Date "2022.04.19"]
[WhiteClock "0:02:15"]
[BlackClock "0:00:26"]

1. e4 {[%clk 0:02:43]}  e5 {[%clk 0:02:59]} 2. Bc4 {[%clk 0:02:43]}  Nf6 {[%clk 0:02:55]} 3. d4 {[%clk 0:02:43]}  exd4 {[%clk 0:02:51]} 4. Nf3 {[%clk 0:02:43]}  Nc6 {[%clk 0:02:45]} 5. O-O {[%clk 0:02:43]}  Nxe4 {[%clk 0:02:26]} 6. Re1 {[%clk 0:02:42]}  d5 {[%clk 0:02:26]} 7. Nc3 {[%clk 0:02:43]}  Be6 {[%clk 0:02:00]} 8. Bxd5 {[%clk 0:02:28]}  Bxd5 {[%clk 0:01:48]} 9. Nxe4 {[%clk 0:02:27]}  Be7 {[%clk 0:01:48]} 10. Nxd4 {[%clk 0:02:23]}  O-O {[%clk 0:01:32]} 11. Nxc6 {[%clk 0:02:23]}  Bxc6 {[%clk 0:01:29]} 12. Qxd8 {[%clk 0:02:17]}  Rfxd8 {[%clk 0:01:19]} 13. Bg5 {[%clk 0:02:14]}  f6 {[%clk 0:01:15]} 14. Bf4 {[%clk 0:02:14]}  Rd7 {[%clk 0:01:07]} 15. Nc3 {[%clk 0:02:10]}  Bb4 {[%clk 0:01:00]} 16. Rad1 {[%clk 0:02:09]}  Rad8 {[%clk 0:01:00]} 17. Rxd7 {[%clk 0:02:08]}  Rxd7 {[%clk 0:01:00]} 18. Rd1 {[%clk 0:02:05]}  Bxc3 {[%clk 0:00:36]} 19. Rxd7 {[%clk 0:02:04]}  Bxd7 {[%clk 0:00:37]} 20. bxc3 {[%clk 0:02:04]}  Be6 {[%clk 0:00:30]} 21. a3 {[%clk 0:02:00]}  c6 {[%clk 0:00:30]} 22. Kf1 {[%clk 0:01:59]}  Bf5 {[%clk 0:00:29]} 23. Be3 {[%clk 0:02:00]}  a5 {[%clk 0:00:25]} 24. Bb6 {[%clk 0:01:57]}  a4 {[%clk 0:00:25]} 25. Ke2 {[%clk 0:01:57]}  Bxc2 {[%clk 0:00:25]} 26. Ke3 {[%clk 0:01:57]}  Kf7 {[%clk 0:00:24]} 27. g3 {[%clk 0:01:57]}  Ke6 {[%clk 0:00:23]} 28. Kd4 {[%clk 0:01:50]}  h5 {[%clk 0:00:19]} 29. f4 {[%clk 0:01:50]}  g5 {[%clk 0:00:18]} 30. fxg5 {[%clk 0:01:49]}  fxg5 {[%clk 0:00:19]} 31. Ba7 {[%clk 0:01:49]}  Kd6 {[%clk 0:00:18]} 32. Bb6 {[%clk 0:01:49]}  Ke6 {[%clk 0:00:19]} 33. Ba7 {[%clk 0:01:49]}  h4 {[%clk 0:00:19]} 34. gxh4 {[%clk 0:01:48]}  gxh4 {[%clk 0:00:20]} 35. Bb6 {[%clk 0:01:48]}  Kf5 {[%clk 0:00:20]} 36. Ke3 {[%clk 0:01:49]}  Kg4 {[%clk 0:00:20]} 37. Bc7 {[%clk 0:01:46]}  Kf5 {[%clk 0:00:19]} 38. Kd4 {[%clk 0:01:46]}  Bb3 {[%clk 0:00:19]} 39. Kc5 {[%clk 0:01:45]}  Ke4 {[%clk 0:00:18]} 40. Kb6 {[%clk 0:01:45]}  Kd3 {[%clk 0:00:18]} 41. Kxb7 {[%clk 0:01:46]}  Kxc3 {[%clk 0:00:18]} 42. Kxc6 {[%clk 0:01:46]}  Kb2 {[%clk 0:00:18]} 43. Bd6 {[%clk 0:01:46]}  Bd1 {[%clk 0:00:19]} 44. Bb4 {[%clk 0:01:46]}  Bb3 {[%clk 0:00:19]} 45. Kd6 {[%clk 0:01:47]}  Bd1 {[%clk 0:00:19]} 46. Ke5 {[%clk 0:01:48]}  Bb3 {[%clk 0:00:19]} 47. Kf4 {[%clk 0:01:49]}  h3 {[%clk 0:00:19]} 48. Kg5 {[%clk 0:01:50]}  Be6 {[%clk 0:00:19]} 49. Kh4 {[%clk 0:01:51]}  Bc8 {[%clk 0:00:19]} 50. Kg3 {[%clk 0:01:52]}  Bd7 {[%clk 0:00:20]} 51. Kf2 {[%clk 0:01:53]}  Bc8 {[%clk 0:00:21]} 52. Ke3 {[%clk 0:01:53]}  Bd7 {[%clk 0:00:22]} 53. Kd4 {[%clk 0:01:54]}  Bc8 {[%clk 0:00:22]} 54. Ke5 {[%clk 0:01:55]}  Bd7 {[%clk 0:00:23]} 55. Kd6 {[%clk 0:01:56]}  Bc8 {[%clk 0:00:23]} 56. Ke7 {[%clk 0:01:57]}  Bg4 {[%clk 0:00:23]} 57. Kd8 {[%clk 0:01:58]}  Bf5 {[%clk 0:00:22]} 58. Kc7 {[%clk 0:01:59]}  Bg4 {[%clk 0:00:22]} 59. Kb8 {[%clk 0:02:00]}  Bf5 {[%clk 0:00:22]} 60. Ka7 {[%clk 0:02:01]}  Kb3 {[%clk 0:00:22]} 61. Kb6 {[%clk 0:02:01]}  Bg4 {[%clk 0:00:23]} 62. Kc5 {[%clk 0:02:02]}  Bf5 {[%clk 0:00:23]} 63. Kd6 {[%clk 0:02:03]}  Bg4 {[%clk 0:00:24]} 64. Ke5 {[%clk 0:02:04]}  Bc8 {[%clk 0:00:24]} 65. Kd4 {[%clk 0:02:05]}  Bd7 {[%clk 0:00:24]} 66. Ke3 {[%clk 0:02:05]}  Bc8 {[%clk 0:00:24]} 67. Kd2 {[%clk 0:02:06]}  Bd7 {[%clk 0:00:24]} 68. Kd3 {[%clk 0:02:07]}  Bc8 {[%clk 0:00:25]} 69. Kd4 {[%clk 0:02:08]}  Bd7 {[%clk 0:00:25]} 70. Kd5 {[%clk 0:02:09]}  Bc8 {[%clk 0:00:26]} 71. Ke5 {[%clk 0:02:10]}  Bg4 {[%clk 0:00:26]} 72. Kd6 {[%clk 0:02:11]}  Bf5 {[%clk 0:00:25]} 73. Ke7 {[%clk 0:02:12]}  Bg4 {[%clk 0:00:26]} 74. Kd8 {[%clk 0:02:13]}  Bf5 {[%clk 0:00:25]} 75. Ke7 {[%clk 0:02:14]}  Bg4 {[%clk 0:00:26]} 76. Kf6 {[%clk 0:02:14]}  Bc8 {[%clk 0:00:26]} 77. Ke5 {[%clk 0:02:15]}  Bd7 {[%clk 0:00:26]} 78. Kf4 {[%clk 0:02:15]} 1/2-1/2


[Site "https://www.chess.com"]

[Event "Titled Tuesday Blitz April 19 Early 2022"]
[White "Tasev, Dejan"]
[Black "Chigaev, Maksim"]
[WhiteFideId "936618"]
[BlackFideId "4108116"]
[WhiteElo "2253"]
[BlackElo "2478"]
[Result "0-1"]
[Round "09"]
[TimeControl "180+1"]
[Date "2022.04.19"]
[WhiteClock "0:00:15"]
[BlackClock "0:01:23"]

1. e4 {[%clk 0:02:59]}  c5 {[%clk 0:03:00]} 2. Nf3 {[%clk 0:02:59]}  d6 {[%clk 0:03:01]} 3. Nc3 {[%clk 0:02:59]}  a6 {[%clk 0:03:01]} 4. d4 {[%clk 0:02:59]}  cxd4 {[%clk 0:03:01]} 5. Nxd4 {[%clk 0:02:59]}  Nf6 {[%clk 0:03:02]} 6. Bc4 {[%clk 0:02:59]}  e6 {[%clk 0:03:00]} 7. Bb3 {[%clk 0:02:59]}  Nbd7 {[%clk 0:03:00]} 8. f3 {[%clk 0:02:57]}  Nc5 {[%clk 0:02:58]} 9. Be3 {[%clk 0:02:57]}  Qc7 {[%clk 0:02:58]} 10. Qd2 {[%clk 0:02:57]}  b5 {[%clk 0:02:58]} 11. a3 {[%clk 0:02:53]}  h5 {[%clk 0:02:58]} 12. O-O {[%clk 0:02:50]}  Bb7 {[%clk 0:02:58]} 13. Rfd1 {[%clk 0:02:49]}  Be7 {[%clk 0:02:59]} 14. Qf2 {[%clk 0:02:48]}  O-O {[%clk 0:02:58]} 15. Ba2 {[%clk 0:02:48]}  Rac8 {[%clk 0:02:57]} 16. Rac1 {[%clk 0:02:48]}  Rfe8 {[%clk 0:02:57]} 17. Qg3 {[%clk 0:02:31]}  Bf8 {[%clk 0:02:56]} 18. Kh1 {[%clk 0:02:21]}  Ncd7 {[%clk 0:02:54]} 19. Nce2 {[%clk 0:02:13]}  d5 {[%clk 0:02:47]} 20. e5 {[%clk 0:01:50]}  Qxe5 {[%clk 0:02:38]} 21. Bf4 {[%clk 0:01:47]}  h4 {[%clk 0:02:38]} 22. Bxe5 {[%clk 0:01:41]}  hxg3 {[%clk 0:02:38]} 23. Bxg3 {[%clk 0:01:42]}  g6 {[%clk 0:02:36]} 24. c3 {[%clk 0:01:39]}  e5 {[%clk 0:02:34]} 25. Nb3 {[%clk 0:01:34]}  Bh6 {[%clk 0:02:32]} 26. Rc2 {[%clk 0:01:23]}  d4 {[%clk 0:02:31]} 27. Na5 {[%clk 0:01:21]}  Bd5 {[%clk 0:02:30]} 28. c4 {[%clk 0:01:12]}  Be6 {[%clk 0:02:30]} 29. b4 {[%clk 0:01:06]}  d3 {[%clk 0:02:24]} 30. Rxd3 {[%clk 0:01:03]}  Bf5 {[%clk 0:02:24]} 31. Rdc3 {[%clk 0:01:00]}  Bxc2 {[%clk 0:02:23]} 32. Rxc2 {[%clk 0:01:01]}  bxc4 {[%clk 0:02:23]} 33. Nc3 {[%clk 0:00:57]}  e4 {[%clk 0:02:22]} 34. fxe4 {[%clk 0:00:54]}  Nxe4 {[%clk 0:02:23]} 35. Nxe4 {[%clk 0:00:54]}  Rxe4 {[%clk 0:02:24]} 36. h3 {[%clk 0:00:52]}  Nb6 {[%clk 0:02:17]} 37. Bf2 {[%clk 0:00:48]}  Be3 {[%clk 0:02:15]} 38. Bxe3 {[%clk 0:00:46]}  Rxe3 {[%clk 0:02:15]} 39. Nxc4 {[%clk 0:00:46]}  Nxc4 {[%clk 0:02:14]} 40. Bxc4 {[%clk 0:00:45]}  Kg7 {[%clk 0:02:14]} 41. Re2 {[%clk 0:00:42]}  Rxa3 {[%clk 0:02:10]} 42. Bd5 {[%clk 0:00:39]}  Rd8 {[%clk 0:02:07]} 43. Bc4 {[%clk 0:00:36]}  Rd4 {[%clk 0:02:07]} 44. Rc2 {[%clk 0:00:35]}  Rd6 {[%clk 0:02:02]} 45. Rf2 {[%clk 0:00:34]}  f5 {[%clk 0:02:00]} 46. Re2 {[%clk 0:00:31]}  Kf6 {[%clk 0:01:59]} 47. Re8 {[%clk 0:00:30]}  Rc3 {[%clk 0:01:58]} 48. Be2 {[%clk 0:00:27]}  Rb3 {[%clk 0:01:54]} 49. Ra8 {[%clk 0:00:26]}  Rxb4 {[%clk 0:01:55]} 50. Rxa6 {[%clk 0:00:25]}  Rxa6 {[%clk 0:01:55]} 51. Bxa6 {[%clk 0:00:26]}  Rb3 {[%clk 0:01:49]} 52. Kh2 {[%clk 0:00:26]}  Rb2 {[%clk 0:01:49]} 53. Kg3 {[%clk 0:00:25]}  g5 {[%clk 0:01:45]} 54. Bc4 {[%clk 0:00:25]}  Rc2 {[%clk 0:01:44]} 55. Bd5 {[%clk 0:00:24]}  Ke5 {[%clk 0:01:44]} 56. Bf3 {[%clk 0:00:24]}  Rc3 {[%clk 0:01:40]} 57. Kf2 {[%clk 0:00:21]}  Ra3 {[%clk 0:01:39]} 58. Kg3 {[%clk 0:00:21]}  Ra2 {[%clk 0:01:31]} 59. Bc6 {[%clk 0:00:19]}  Kd4 {[%clk 0:01:28]} 60. Bd7 {[%clk 0:00:19]}  Ra3+ {[%clk 0:01:27]} 61. Kf2 {[%clk 0:00:19]}  Ke4 {[%clk 0:01:27]} 62. g3 {[%clk 0:00:17]}  Ra2+ {[%clk 0:01:27]} 63. Kg1 {[%clk 0:00:15]}  Kf3 {[%clk 0:01:25]} 64. Bxf5 {[%clk 0:00:15]}  Kxg3 {[%clk 0:01:23]} 0-1


[Site "https://www.chess.com"]

[Event "Titled Tuesday Blitz April 19 Early 2022"]
[White "Todorovic, Bojan"]
[Black "Urbina Perez, Juan Antonio"]
[WhiteFideId "917087"]
[BlackFideId "2217368"]
[WhiteElo "2266"]
[BlackElo "2192"]
[Result "1-0"]
[Round "09"]
[TimeControl "180+1"]
[Date "2022.04.19"]
[WhiteClock "0:00:10"]
[BlackClock "0:00:59"]

1. d4 {[%clk 0:02:59]}  Nf6 {[%clk 0:02:56]} 2. Bg5 {[%clk 0:02:57]}  e6 {[%clk 0:02:57]} 3. Nc3 {[%clk 0:02:53]}  d5 {[%clk 0:02:54]} 4. e4 {[%clk 0:02:52]}  Bb4 {[%clk 0:02:53]} 5. e5 {[%clk 0:02:52]}  h6 {[%clk 0:02:54]} 6. Bd2 {[%clk 0:02:50]}  Bxc3 {[%clk 0:02:52]} 7. bxc3 {[%clk 0:02:49]}  Ne4 {[%clk 0:02:53]} 8. Bd3 {[%clk 0:02:48]}  Nxd2 {[%clk 0:02:52]} 9. Qxd2 {[%clk 0:02:45]}  c5 {[%clk 0:02:52]} 10. f4 {[%clk 0:02:34]}  Qa5 {[%clk 0:02:49]} 11. Nf3 {[%clk 0:02:28]}  cxd4 {[%clk 0:02:49]} 12. cxd4 {[%clk 0:02:26]}  Qxd2+ {[%clk 0:02:50]} 13. Kxd2 {[%clk 0:02:25]}  g6 {[%clk 0:02:51]} 14. g4 {[%clk 0:02:23]}  Bd7 {[%clk 0:02:49]} 15. f5 {[%clk 0:02:20]}  gxf5 {[%clk 0:02:48]} 16. gxf5 {[%clk 0:02:20]}  exf5 {[%clk 0:02:49]} 17. Nh4 {[%clk 0:02:14]}  Nc6 {[%clk 0:02:47]} 18. c3 {[%clk 0:02:12]}  Rg8 {[%clk 0:02:41]} 19. Rhg1 {[%clk 0:02:11]}  Ke7 {[%clk 0:02:39]} 20. Bxf5 {[%clk 0:01:53]}  Na5 {[%clk 0:02:31]} 21. Bxd7 {[%clk 0:01:46]}  Kxd7 {[%clk 0:02:32]} 22. Nf5 {[%clk 0:01:46]}  Nc4+ {[%clk 0:02:21]} 23. Kd3 {[%clk 0:01:44]}  Ke6 {[%clk 0:02:17]} 24. Ng7+ {[%clk 0:01:33]}  Kd7 {[%clk 0:02:14]} 25. Raf1 {[%clk 0:01:31]}  Raf8 {[%clk 0:02:13]} 26. Rf6 {[%clk 0:01:27]}  Nb2+ {[%clk 0:02:06]} 27. Kc2 {[%clk 0:01:26]}  Nc4 {[%clk 0:02:05]} 28. Rg3 {[%clk 0:01:26]}  b6 {[%clk 0:01:53]} 29. Rxh6 {[%clk 0:01:24]}  Ne3+ {[%clk 0:01:48]} 30. Kd3 {[%clk 0:01:17]}  Rxg7 {[%clk 0:01:46]} 31. Rxg7 {[%clk 0:01:15]}  Nf5 {[%clk 0:01:47]} 32. Rhh7 {[%clk 0:01:07]}  Nxg7 {[%clk 0:01:46]} 33. Rxg7 {[%clk 0:01:07]}  Ke6 {[%clk 0:01:47]} 34. Rh7 {[%clk 0:01:04]}  Rg8 {[%clk 0:01:45]} 35. Rh6+ {[%clk 0:01:04]}  Ke7 {[%clk 0:01:44]} 36. Rc6 {[%clk 0:00:58]}  Kd7 {[%clk 0:01:38]} 37. Rf6 {[%clk 0:00:57]}  Ke7 {[%clk 0:01:38]} 38. Rf2 {[%clk 0:00:56]}  Rh8 {[%clk 0:01:35]} 39. Kc2 {[%clk 0:00:51]}  Rh3 {[%clk 0:01:33]} 40. Kb3 {[%clk 0:00:51]}  Ke8 {[%clk 0:01:25]} 41. Kb4 {[%clk 0:00:50]}  Ke7 {[%clk 0:01:25]} 42. Kb5 {[%clk 0:00:49]}  Rxc3 {[%clk 0:01:24]} 43. Ka6 {[%clk 0:00:46]}  Ra3+ {[%clk 0:01:23]} 44. Kb7 {[%clk 0:00:46]}  Ra4 {[%clk 0:01:23]} 45. Rd2 {[%clk 0:00:45]}  Ke6 {[%clk 0:01:21]} 46. h4 {[%clk 0:00:43]}  Ra3 {[%clk 0:01:21]} 47. h5 {[%clk 0:00:42]}  Rh3 {[%clk 0:01:19]} 48. Kxa7 {[%clk 0:00:41]}  Rxh5 {[%clk 0:01:20]} 49. Kxb6 {[%clk 0:00:42]}  Rh3 {[%clk 0:01:20]} 50. a4 {[%clk 0:00:38]}  Rb3+ {[%clk 0:01:20]} 51. Kc5 {[%clk 0:00:37]}  Ra3 {[%clk 0:01:19]} 52. Kb4 {[%clk 0:00:36]}  Ra1 {[%clk 0:01:19]} 53. Rd3 {[%clk 0:00:32]}  Rb1+ {[%clk 0:01:18]} 54. Rb3 {[%clk 0:00:32]}  Rc1 {[%clk 0:01:18]} 55. Kb5 {[%clk 0:00:30]}  Rc4 {[%clk 0:01:13]} 56. Rb4 {[%clk 0:00:30]}  Rc8 {[%clk 0:01:10]} 57. a5 {[%clk 0:00:29]}  Rb8+ {[%clk 0:01:10]} 58. Ka4 {[%clk 0:00:29]}  Ra8 {[%clk 0:01:10]} 59. Rb6+ {[%clk 0:00:29]}  Kf5 {[%clk 0:01:09]} 60. Rf6+ {[%clk 0:00:26]}  Ke4 {[%clk 0:01:09]} 61. Rxf7 {[%clk 0:00:26]}  Kxd4 {[%clk 0:01:10]} 62. e6 {[%clk 0:00:27]}  Ke5 {[%clk 0:01:10]} 63. e7 {[%clk 0:00:27]}  Re8 {[%clk 0:01:09]} 64. Kb5 {[%clk 0:00:24]}  d4 {[%clk 0:01:09]} 65. Kc6 {[%clk 0:00:21]}  Ke6 {[%clk 0:01:08]} 66. Rh7 {[%clk 0:00:18]}  d3 {[%clk 0:01:08]} 67. Rh3 {[%clk 0:00:16]}  Rxe7 {[%clk 0:01:05]} 68. Rxd3 {[%clk 0:00:16]}  Rh7 {[%clk 0:01:00]} 69. Re3+ {[%clk 0:00:16]}  Kf5 {[%clk 0:01:00]} 70. a6 {[%clk 0:00:16]}  Rh6+ {[%clk 0:01:01]} 71. Kb5 {[%clk 0:00:16]}  Kf4 {[%clk 0:01:00]} 72. Re8 {[%clk 0:00:14]}  Rh5+ {[%clk 0:00:58]} 73. Kb4 {[%clk 0:00:12]}  Rh1 {[%clk 0:00:58]} 74. a7 {[%clk 0:00:12]}  Rb1+ {[%clk 0:00:58]} 75. Kc5 {[%clk 0:00:12]}  Rc1+ {[%clk 0:00:58]} 76. Kd4 {[%clk 0:00:10]}  Rd1+ {[%clk 0:00:58]} 77. Kc3 {[%clk 0:00:10]}  Rc1+ {[%clk 0:00:59]} 78. Kd2 {[%clk 0:00:11]}  Ra1 {[%clk 0:00:59]} 79. a8=Q {[%clk 0:00:10]} 1-0


[Site "https://www.chess.com"]

[Event "Titled Tuesday Blitz April 19 Early 2022"]
[White "Tristan, Leonardo"]
[Black "Tologon tegin, Semetei"]
[WhiteFideId "113816"]
[BlackFideId "13800574"]
[WhiteElo "2404"]
[BlackElo "2258"]
[Result "0-1"]
[Round "09"]
[TimeControl "180+1"]
[Date "2022.04.19"]
[WhiteClock "0:00:03"]
[BlackClock "0:00:51"]

1. d4 {[%clk 0:03:00]}  Nf6 {[%clk 0:02:55]} 2. Nf3 {[%clk 0:03:01]}  e6 {[%clk 0:02:55]} 3. Bf4 {[%clk 0:03:01]}  b6 {[%clk 0:02:55]} 4. e3 {[%clk 0:03:01]}  Bb7 {[%clk 0:02:55]} 5. Nbd2 {[%clk 0:03:01]}  c5 {[%clk 0:02:55]} 6. c3 {[%clk 0:03:01]}  cxd4 {[%clk 0:02:55]} 7. exd4 {[%clk 0:03:01]}  Ba6 {[%clk 0:02:56]} 8. Bxa6 {[%clk 0:02:57]}  Nxa6 {[%clk 0:02:56]} 9. O-O {[%clk 0:02:58]}  Nc7 {[%clk 0:02:55]} 10. Nc4 {[%clk 0:02:38]}  d6 {[%clk 0:02:54]} 11. a4 {[%clk 0:02:03]}  Be7 {[%clk 0:02:52]} 12. Qd3 {[%clk 0:02:01]}  O-O {[%clk 0:02:51]} 13. Rfe1 {[%clk 0:02:02]}  Qd7 {[%clk 0:02:47]} 14. h4 {[%clk 0:01:51]}  h6 {[%clk 0:02:46]} 15. Ne3 {[%clk 0:01:46]}  Nfd5 {[%clk 0:02:43]} 16. Nxd5 {[%clk 0:01:45]}  Nxd5 {[%clk 0:02:43]} 17. Bd2 {[%clk 0:01:46]}  Rfc8 {[%clk 0:02:38]} 18. c4 {[%clk 0:01:44]}  Nf6 {[%clk 0:02:38]} 19. b4 {[%clk 0:01:44]}  a6 {[%clk 0:02:32]} 20. Re3 {[%clk 0:01:23]}  Rc7 {[%clk 0:02:23]} 21. Qe2 {[%clk 0:01:14]}  Rac8 {[%clk 0:02:22]} 22. Rc3 {[%clk 0:00:52]}  Qc6 {[%clk 0:02:05]} 23. Rcc1 {[%clk 0:00:23]}  Qe4 {[%clk 0:01:59]} 24. Qf1 {[%clk 0:00:19]}  Ng4 {[%clk 0:01:37]} 25. c5 {[%clk 0:00:19]}  bxc5 {[%clk 0:01:35]} 26. dxc5 {[%clk 0:00:20]}  dxc5 {[%clk 0:01:34]} 27. Qxa6 {[%clk 0:00:20]}  cxb4 {[%clk 0:01:32]} 28. Qxc8+ {[%clk 0:00:20]}  Rxc8 {[%clk 0:01:32]} 29. Rxc8+ {[%clk 0:00:21]}  Kh7 {[%clk 0:01:32]} 30. a5 {[%clk 0:00:22]}  b3 {[%clk 0:01:21]} 31. Bc3 {[%clk 0:00:22]}  Qc2 {[%clk 0:01:18]} 32. Rf1 {[%clk 0:00:14]}  b2 {[%clk 0:01:16]} 33. Nd4 {[%clk 0:00:13]}  Qc1 {[%clk 0:01:06]} 34. Bxb2 {[%clk 0:00:09]}  Qxc8 {[%clk 0:01:05]} 35. Ra1 {[%clk 0:00:08]}  Qa6 {[%clk 0:01:00]} 36. Bc3 {[%clk 0:00:07]}  Bc5 {[%clk 0:01:00]} 37. g3 {[%clk 0:00:04]}  e5 {[%clk 0:01:00]} 38. Nf5 {[%clk 0:00:03]}  Bxf2+ {[%clk 0:00:59]} 39. Kg2 {[%clk 0:00:04]}  h5 {[%clk 0:00:57]} 40. Ra2 {[%clk 0:00:03]}  Qc6+ {[%clk 0:00:56]} 41. Kf1 {[%clk 0:00:02]}  Qc4+ {[%clk 0:00:55]} 42. Kg2 {[%clk 0:00:02]}  Qxa2 {[%clk 0:00:54]} 43. a6 {[%clk 0:00:03]}  Bd4+ {[%clk 0:00:53]} 44. Kf3 {[%clk 0:00:03]}  Qd5+ {[%clk 0:00:51]} 45. Ke2 {[%clk 0:00:03]}  Qe4+ {[%clk 0:00:50]} 46. Kd1 {[%clk 0:00:03]}  Qd3+ {[%clk 0:00:50]} 47. Kc1 {[%clk 0:00:02]}  Bxc3 {[%clk 0:00:50]} 48. a7 {[%clk 0:00:03]}  Qd2+ {[%clk 0:00:50]} 49. Kb1 {[%clk 0:00:03]}  Qb2# {[%clk 0:00:51]} 0-1


[Site "https://www.chess.com"]